[Event "TUR-ch U13-18 Open 2023"]
[Site "Antalya"]
[Date "2023.01.25"]
[Round "6"]
[White "Sevig, Mert Can"]
[Black "Durucay, Uygar"]
[Result "0-1"]
[ECO "D02"]
[WhiteElo "1738"]
[BlackElo "1926"]
[Annotator "TA"]
[PlyCount "85"]
[EventDate "2023.01.17"]
[EventType "swiss"]
[EventCountry "TUR"]
[SourceTitle "playchess.com"]
[Source "ChessBase"]
[SourceQuality "1"]
[TimeControl "5400+30"]

{[%evp 10,85,6,8,11,-18,16,-10,35,37,25,13,45,16,19,14,10,0,21,-26,-34,-23,-24,-33,-45,-32,-27,-46,-31,-36,-25,-37,-4,-14,66,0,-4,-6,-6,0,-8,-205,-211,-204,-203,-224,-221,-274,-267,-248,-245,-355,-360,-356,-351,-393,-343,-352,-300,-461,-462,-1093,-1088,-1381,-1284,-1085,-996,-29976,-29977,-29975,-6352,-6178,-5978,-6070,-5521,-5085,-5085,-1928]} 1. d4 {[%emt 0:01:00]} Nf6 {[%emt 0:01:00]} 2. Bf4 {[%emt 0:00:00]} d5 {[%emt 0:00:30]} 3. Nf3 {[%emt 0:00:00]} c6 {[%emt 0:00:30]} 4. e3 {[%emt 0:00:30]} Bf5 {[%emt 0:00:00]} 5. c3 {[%emt 0:00:30]} e6 {[%emt 0:01:00]} 6. Nbd2 {[%emt 0:00:30]} Bd6 {[%emt 0:00:00] D02: 1 d4 d5 2 Nf3 sidelines, including 2...Nf6 3 g3 and 2...Nf6 3 Bf4.} 7. Bg3 {[%emt 0:00:30]} O-O {[%emt 0:00:00]} 8. Nh4 {[%emt 0:00:30]} Bg6 {[%emt 0:03:30] The position is equal.} 9. Nxg6 {[%emt 0:00:30]} hxg6 {[%emt 0:00:00]} 10. Bd3 {[%emt 0:00:30]} Qc7 {[%emt 0:00:00] [#]} 11. c4 $146 {[%emt 0:02:30]} ({Predecessor:} 11. Qc2 Nbd7 12. Nf3 e5 13. Be2 exd4 14. cxd4 Qa5+ 15. Qc3 Bb4 16. Kd2 Bxc3+ 17. bxc3 Ne4+ 18. Ke1 Qxc3+ 19. Kf1 Qxa1+ 20. Ne1 {0-1 Sotoude Nia,M (1443)-Emami,D IRI-ch U14 Chess.com INT 2021 (4)}) 11... Nbd7 {[%emt 0:01:30]} 12. Bxd6 {[%emt 0:09:30]} (12. Rc1 {seems wilder.} Bxg3 13. hxg3 e5 14. cxd5 exd4 15. exd4 Nxd5 16. Qg4) 12... Qxd6 {[%emt 0:00:00]} 13. c5 {[%emt 0:00:30]} Qe7 {[%emt 0:01:00]} 14. f4 {[%emt 0:00:30]} (14. b4 {deserves consideration.}) 14... b6 {[%emt 0:00:30]} 15. b4 {[%emt 0:04:30]} a5 {[%emt 0:01:30]} 16. a3 {[%emt 0:00:30]} axb4 {[%emt 0:01:30]} 17. axb4 {[%emt 0:00:30]} Rxa1 {[%emt 0:00:30]} 18. Qxa1 {[%emt 0:00:00]} Ng4 {[%emt 0:02:30]} 19. Ke2 {[%emt 0:06:00] [#]} e5 $1 {[%emt 0:02:30][%mdl 64] Deflection} 20. fxe5 {[%emt 0:04:30]} Qg5 {[%emt 0:00:30]} (20... f6 $5 {[%cal Rb6c5]} 21. e6 (21. Bxg6 $2 {is the wrong capture.} fxe5 22. Rf1 bxc5 $19) 21... Qxe6 $17) 21. Qg1 {[%emt 0:01:30] aiming for Nf3.} bxc5 {[%emt 0:00:30]} (21... Nxe3 $2 22. Nf3 Qh5 23. Qxe3 $18) (21... Ra8 $1 $11) 22. bxc5 {[%emt 0:04:30]} (22. Nf3 $14 Qe7 23. bxc5 (23. dxc5 $2 {perishes.} Ra8 $19)) 22... Ra8 $11 {[%emt 0:01:30]} (22... Nxe3 $2 23. Nf3 Qxg2+ 24. Kxe3 $18) 23. h3 $1 $132 {[%emt 0:01:30][%mdl 2048] [#] White puts up resistance} Nxe3 {[%emt 0:05:30][%mdl 64] Deflection} 24. h4 {[%emt 0:07:30]} Qg3 {[%emt 0:00:00] Dancing on a razor blade.} (24... Qxg2+ $2 25. Kxe3 Qxg1+ 26. Rxg1 $18) 25. Rh3 $2 {[%emt 0:04:30] This costs White the game.} (25. Qf2 $11 {and White has nothing to worry.} Qxg2 26. Qxg2 Nxg2 27. Kf3) 25... Qxg2+ $19 {[%emt 0:00:00]} 26. Qxg2 {[%emt 0:00:30]} Nxg2 {[%emt 0:00:30] Excellent horsemanship.} 27. Kf3 {[%emt 0:00:30] Repels Nf4} Ra2 $1 {[%emt 0:00:30]} 28. Kxg2 {[%emt 0:00:30][%cal Og2f2]} Rxd2+ {[%emt 0:00:30][%mdl 4096] Endgame KRB-KRN} 29. Kf1 {[%emt 0:00:30] [#]} Nf8 $1 {[%emt 0:00:30]} 30. h5 {[%emt 0:28:30]} (30. Ba6 $142) 30... gxh5 {[%emt 0:00:30]} 31. Ke1 {[%emt 0:01:30]} Ra2 {[%emt 0:00:30]} 32. Rxh5 {[%emt 0:00:30]} g6 {[%emt 0:00:30] Dodges Bf5} 33. Rh4 {[%emt 0:01:30]} Ne6 {[%emt 0:00:30] White must now prevent ...Ra4.} 34. Rg4 {[%emt 0:02:57]} (34. Be2 {was worth a try.}) 34... Ra4 {[%emt 0:03:30]} 35. Bf5 {[%emt 0:01:47]} (35. Bc2 $142 Rxd4 36. Rxd4 Nxd4 37. Bd1) 35... Nxd4 {[%emt 0:00:30] ...Nf3+ would be deadly.} (35... Rxd4 $2 36. Bxe6 Rd3 37. Rxg6+ Kf8 38. Rf6 $18) 36. Bd7 {[%emt 0:06:13]} Nf3+ {[%emt 0:00:30]} 37. Kf2 {[%emt 0:00:02]} Rxg4 {[%emt 0:00:30]} ({Worse is} 37... Nxe5 38. Rxa4 Nxd7 39. Ra8+ Kg7 40. Ke3 $17) 38. Bxg4 {[%emt 0:00:30]} Nxe5 {[%emt 0:00:00] KB-KN} 39. Bc8 {[%emt 0:00:17]} Nd3+ {[%emt 0:00:00]} (39... Kg7 $142 40. Ba6 f5 41. Be2 Kf6 42. Ke1 g5 43. Kf1 Nd7 44. Kg2 Nxc5 45. Bh5 Ne4 46. Kh2 c5 47. Be2 c4 48. Kg2 Ke5 49. Kf1 g4 50. Ke1 c3 51. Kd1 f4 52. Kc2 g3 53. Bf3 Nd2 54. Bh1 Kd4 55. Bg2 f3 56. Bxf3 Nxf3 57. Kb3 g2 58. Ka4 g1=Q 59. Kb5 Qg6 60. Ka4 Kc4 61. Ka5 Nd4 62. Ka4 Qa6#) 40. Ke3 {[%emt 0:00:30] Black is clearly winning.} Nxc5 {[%emt 0:00:30]} 41. Kd4 {[%emt 0:00:30]} Ne6+ {[%emt 0:00:30]} 42. Ke5 {[%emt 0:00:30]} d4 {[%emt 0:00:00] ( -> ...d3)} 43. Ke4 {[%emt 0:00:00] Weighted Error Value: White=0.62/Black=0.33} 0-1

[Event "TUR-ch U13-18 Open 2023"]
[Site "Antalya"]
[Date "2023.01.25"]
[Round "6"]
[White "Kolat, Ata"]
[Black "Simsek, Suat Can"]
[Result "1-0"]
[ECO "D02"]
[WhiteElo "1732"]
[BlackElo "1761"]
[Annotator "NA RC COMBH"]
[PlyCount "103"]
[EventDate "2023.01.17"]
[EventType "swiss"]
[EventCountry "TUR"]
[SourceTitle "playchess.com"]
[Source "ChessBase"]
[SourceQuality "1"]
[TimeControl "5400+30"]

1. d4 {[%emt 0:01:00]} Nf6 {[%emt 0:01:00]} 2. Bf4 {[%emt 0:00:30]} d5 {[%emt 0:00:00]} 3. e3 {[%emt 0:00:00]} c5 {[%emt 0:00:00]} 4. c3 {[%emt 0:00:00]} Nc6 {[%emt 0:00:30]} 5. Nf3 {[%emt 0:00:00]} Qb6 {[%emt 0:00:30]} 6. Qb3 {[%emt 0:00:00]} c4 {[%emt 0:00:30]} 7. Qc2 {[%emt 0:00:30]} Bf5 {[%emt 0:03:30]} 8. Qc1 {[%emt 0:00:00]} e6 {[%emt 0:03:30]} 9. Nbd2 {[%emt 0:00:00]} Be7 {[%emt 0:24:30]} 10. Be2 {[%emt 0:00:30]} h6 {[%emt 0:03:30]} 11. h3 {[%emt 0:02:30]} O-O {[%emt 0:00:30]} 12. O-O {[%emt 0:00:30]} Rfc8 {[%emt 0:11:30]} 13. Bd1 {[%emt 0:06:30]} Qd8 {[%emt 0:03:30]} 14. Bc2 {[%emt 0:00:30]} Bd6 {[%emt 0:02:30]} 15. Bxd6 {[%emt 0:06:30]} Qxd6 {[%emt 0:01:30]} 16. Re1 {[%emt 0:00:30]} b5 {[%emt 0:12:30]} 17. e4 {[%emt 0:01:30]} dxe4 {[%emt 0:00:30]} 18. Nxe4 {[%emt 0:00:30]} Nxe4 {[%emt 0:00:30]} 19. Bxe4 {[%emt 0:00:00]} Bxe4 {[%emt 0:01:30]} 20. Rxe4 {[%emt 0:00:00]} Ne7 {[%emt 0:01:30]} 21. Ne5 {[%emt 0:01:30]} Nd5 {[%emt 0:02:30]} 22. Rg4 {[%emt 0:06:30]} Nf6 {[%emt 0:02:30]} 23. Rh4 {[%emt 0:07:30]} Qe7 {[%emt 0:10:47]} 24. Qe3 {[%emt 0:05:30]} Nd5 {[%emt 0:03:53]} 25. Qg3 {[%emt 0:00:30]} Kh7 {[%emt 0:01:50]} 26. Re1 {[%emt 0:05:30]} Rg8 {[%emt 0:03:02]} 27. Nf3 {[%emt 0:04:30]} g5 {[%emt 0:02:35]} 28. Rhe4 {[%emt 0:03:30]} Nf6 {[%emt 0:00:34]} 29. Re5 {[%emt 0:00:30]} Nh5 {[%emt 0:01:00]} 30. Qh2 {[%emt 0:01:30]} Qf6 {[%emt 0:02:39]} 31. Rxb5 {[%emt 0:08:30]} Nf4 {[%emt 0:00:09]} 32. Ne5 {[%emt 0:01:30]} a6 {[%emt 0:00:57]} 33. Rb7 {[%emt 0:00:30]} Rg7 {[%emt 0:00:28]} 34. Qg3 {[%emt 0:01:30]} h5 {[%emt 0:00:13]} 35. Qf3 {[%emt 0:03:30]} Rag8 {[%emt 0:00:23]} 36. Re4 {[%emt 0:02:30]} Qf5 {[%emt 0:00:49]} 37. g4 {[%emt 0:13:34]} Qf6 {[%emt 0:00:21]} 38. gxh5 {[%emt 0:01:29]} Qf5 {[%emt 0:00:42]} 39. Kh2 {[%emt 0:03:02]} f6 {[%emt 0:00:33]} 40. Rxg7+ {[%emt 0:00:34]} Rxg7 {[%emt 0:00:30]} 41. Ng4 {[%emt 0:00:28]} Rb7 {[%emt 0:00:28]} 42. Re5 {[%emt 0:01:49]} fxe5 {[%emt 0:00:30]} 43. Qxb7+ {[%emt 0:00:00]} Kh8 {[%emt 0:00:22]} 44. Qc8+ {[%emt 0:00:33]} Kh7 {[%emt 0:00:13]} 45. Qd7+ {[%emt 0:00:42]} Kh8 {[%emt 0:00:30]} 46. Qd8+ {[%emt 0:00:09]} Kg7 {[%emt 0:00:22]} 47. h6+ {[%emt 0:00:55]} Kh7 {[%emt 0:01:05]} 48. Qe7+ {[%emt 0:00:42]} Kg6 {[%emt 0:00:06]} 49. Qe8+ {[%emt 0:00:38]} Kh7 {[%emt 0:00:08]} 50. Qe7+ {[%emt 0:00:34]} Kg6 {[%emt 0:00:04]} 51. h7 {[%emt 0:00:39]} Nxh3 {[%emt 0:00:43]} 52. Qf6+ {[%emt 0:01:43]} 1-0

[Event "TUR-ch U13-18 Open 2023"]
[Site "Antalya"]
[Date "2023.01.25"]
[Round "6"]
[White "Ersoz, Teoman Guney"]
[Black "Binboga, Yaman"]
[Result "0-1"]
[ECO "B75"]
[WhiteElo "1691"]
[BlackElo "1641"]
[Annotator "NA RC COMBH"]
[PlyCount "48"]
[EventDate "2023.01.17"]
[EventType "swiss"]
[EventCountry "TUR"]
[SourceTitle "playchess.com"]
[Source "ChessBase"]
[SourceQuality "1"]
[TimeControl "5400+30"]

1. e4 {[%emt 0:01:00]} c5 {[%emt 0:04:00]} 2. Nf3 {[%emt 0:01:30]} d6 {[%emt 0:00:30]} 3. d4 {[%emt 0:00:30]} cxd4 {[%emt 0:00:30]} 4. Nxd4 {[%emt 0:00:30]} Nf6 {[%emt 0:00:30]} 5. Nc3 {[%emt 0:00:00]} g6 {[%emt 0:00:00]} 6. Be3 {[%emt 0:00:00]} Bg7 {[%emt 0:00:00]} 7. f3 {[%emt 0:00:00]} a6 {[%emt 0:00:30]} 8. Qd2 {[%emt 0:00:00]} Nbd7 {[%emt 0:00:00]} 9. O-O-O {[%emt 0:08:30]} b5 {[%emt 0:00:00]} 10. h4 {[%emt 0:07:30]} Bb7 {[%emt 0:04:30]} 11. g4 {[%emt 0:22:30]} b4 {[%emt 0:00:30]} 12. Nce2 {[%emt 0:03:30]} Qa5 {[%emt 0:00:00]} 13. Kb1 {[%emt 0:13:30]} Ne5 {[%emt 0:08:00]} 14. Nb3 {[%emt 0:03:30]} Qa4 {[%emt 0:01:30]} 15. Ned4 {[%emt 0:01:30]} Nxf3 {[%emt 0:18:30]} 16. Nxf3 {[%emt 0:01:30]} Nxe4 {[%emt 0:00:00]} 17. Qe1 {[%emt 0:11:30]} Bxb2 {[%emt 0:16:00]} 18. Bd4 {[%emt 0:12:09]} Nc3+ {[%emt 0:01:30]} 19. Bxc3 {[%emt 0:00:45]} Bxc3 {[%emt 0:00:30]} 20. Nfd2 {[%emt 0:01:31]} Bxh1 {[%emt 0:00:30]} 21. Qe3 {[%emt 0:01:05]} Bd5 {[%emt 0:04:30]} 22. Ne4 {[%emt 0:06:16]} Bxe4 {[%emt 0:00:30]} 23. Qxe4 {[%emt 0:00:00]} O-O {[%emt 0:00:30]} 24. Rd3 {[%emt 0:00:04]} Qa3 {[%emt 0:00:30]} 0-1

[Event "TUR-ch U13-18 Open 2023"]
[Site "Antalya"]
[Date "2023.01.25"]
[Round "6"]
[White "Aksu, Ata Anil"]
[Black "Engin, Onur Cinar"]
[Result "1/2-1/2"]
[ECO "B15"]
[WhiteElo "1680"]
[BlackElo "1990"]
[Annotator "TA"]
[PlyCount "106"]
[EventDate "2023.01.17"]
[EventType "swiss"]
[EventCountry "TUR"]
[SourceTitle "playchess.com"]
[Source "ChessBase"]
[SourceQuality "1"]
[TimeControl "5400+30"]

{[%evp 10,106,43,8,18,1,-2,-52,-50,-56,-54,-53,-46,-93,-99,-94,-72,-72,-70,-69,-77,-132,-128,-129,-122,-165,-148,-176,-129,-206,-206,-213,-208,-171,-223,-214,-213,-198,-201,-317,-312,-318,-303,-312,-291,-267,-285,-289,-264,-272,-231,-231,-216,-212,-174,-160,0,0,0,0,0,-92,-12,-10,0,0,0,0,0,0,0,0,0,0,0,0,0,0,0,0,0,0,0,0,0,0,0,0,0,0,0,0,0,0,0,0,0,0,29983]} 1. e4 {[%emt 0:01:00]} c6 {[%emt 0:01:00]} 2. d4 {[%emt 0:00:30]} d5 {[%emt 0:00:30]} 3. Nc3 {[%emt 0:00:00]} dxe4 {[%emt 0:01:30]} 4. Nxe4 {[%emt 0:00:00]} Nf6 {[%emt 0:01:30]} 5. Nxf6+ {[%emt 0:01:30]} exf6 {[%emt 0:00:30]} 6. Be3 {[%emt 0:03:30]} Bd6 {[%emt 0:04:30] B15: Caro-Kann: 3 Nc3: 3...g6 and 3...dxe4 4 Nxe4 Nf6 5 Nxf6+ exf6.} 7. Bc4 {[%emt 0:05:30]} Nd7 {[%emt 0:04:30] [#]} 8. Qg4 $146 {[%emt 0:10:30]} (8. Bd3 $11) ({Predecessor:} 8. Qh5 Qe7 9. Ne2 Nb6 10. Bb3 a5 11. a4 O-O 12. O-O Be6 13. Bxe6 fxe6 14. Nc3 {1-0 Marino,M (1858)-Falsetti,P (1551) Milan Crespi op-B 28th 2007 (6)}) 8... O-O $15 {[%emt 0:04:30] Black is slightly better.} 9. Qf3 {[%emt 0:05:30]} (9. Bh6 Re8+ 10. Ne2 Bf8 $17) 9... Nb6 {[%emt 0:04:30]} 10. Bb3 {[%emt 0:01:30]} a5 {[%emt 0:05:30][%cal Ba7a5,Ba5a4][%mdl 32]} 11. c3 {[%emt 0:08:30]} (11. a4 $15) 11... a4 $17 {[%emt 0:04:30]} 12. Bc2 {[%emt 0:00:30]} Re8 {[%emt 0:05:30] Strongly threatening ...Be6.} 13. Ne2 {[%emt 0:01:30]} Nc4 {[%emt 0:08:30]} 14. Bc1 {[%emt 0:00:30]} Be6 $36 {[%emt 0:10:30][%mdl 2048] Black is in control.} 15. Qd3 {[%emt 0:02:30]} (15. O-O $142) 15... g6 {[%emt 0:00:30]} 16. O-O {[%emt 0:03:30]} b5 {[%emt 0:01:30][%cal Oc4b2] Threatens to win with ...Nxb2!} 17. Ng3 {[%emt 0:03:30]} f5 {[%emt 0:02:30]} 18. Qd1 {[%emt 0:07:30]} h5 {[%emt 0:06:30]} ({Black should play} 18... Qh4 $19 {aiming for ...Bd5.} 19. Rb1 Nb6) 19. Rb1 {[%emt 0:10:30]} (19. Re1 $17) 19... h4 $19 {[%emt 0:04:30][%cal Bh5h4,Bh4h3][%mdl 32]} 20. Ne2 {[%emt 0:00:30] [#]} h3 $1 {[%emt 0:01:30][%mdl 512] White must now prevent ...hxg2.} 21. g3 {[%emt 0:02:30]} Bd5 {[%emt 0:06:30][%cal Be6d5,Bd5g2,Bg2f3][%mdl 32] White is weak on the light squares} 22. Nf4 {[%emt 0:01:30]} Bxf4 {[%emt 0:00:30]} 23. Bxf4 {[%emt 0:00:30]} Bg2 {[%emt 0:00:30]} (23... g5 24. Bc1 $11 (24. Qh5 $2 gxf4 25. Qxf5 Nd2 $19)) 24. Re1 {[%emt 0:02:30]} (24. Bd3 $142) 24... Qd5 {[%emt 0:00:51]} 25. Bd3 {[%emt 0:04:30]} Bf3 $1 {[%emt 0:04:44]} 26. Rxe8+ {[%emt 0:00:30]} Rxe8 {[%emt 0:00:06]} 27. Qf1 {[%emt 0:00:30]} Bg2 {[%emt 0:01:45]} 28. Qd1 {[%emt 0:00:30]} (28. Bxc4 $2 bxc4 29. Re1 Bxf1 $19) 28... Be4 {[%emt 0:02:27]} 29. Bxe4 {[%emt 0:02:30]} Qxe4 {[%emt 0:02:21][%csl Gh3][%cal Re4g2]} ({Stronger than} 29... Rxe4 30. f3 Re6 31. Kf2 $17) 30. Qf1 {[%emt 0:00:30] Prevents Qg2+} f6 {[%emt 0:00:25] ...g5 is the strong threat.} 31. b3 {[%emt 0:00:30]} axb3 {[%emt 0:03:25]} 32. axb3 {[%emt 0:00:30] [#]} Nb6 {[%emt 0:01:44]} (32... Na3 $1 $17 {[%cal Ra3b1]} 33. Ra1 Nc2) 33. c4 $11 {[%emt 0:03:03]} g5 {[%emt 0:02:44]} ({Resist} 33... Qxd4 34. Qxh3 Qd7 35. Be3 $14) 34. Bd2 {[%emt 0:00:33]} Qc2 {[%emt 0:03:53]} 35. Re1 {[%emt 0:00:30] [#]} (35. Ba5 $11 {remains equal.} Nd7 36. Rc1) 35... Re4 {[%emt 0:00:14]} ({Black should try} 35... Rxe1 $1 $17 36. Qxe1 Kf7) 36. Rxe4 {[%emt 0:01:37] The position is equal.} Qxe4 {[%emt 0:00:15]} 37. Qxh3 {[%emt 0:00:39][%mdl 4096] Endgame KQB-KQN} Qb1+ {[%emt 0:01:18]} ({Much less strong is} 37... Qxd4 38. Be3 Qd1+ 39. Qf1 Qxf1+ 40. Kxf1 $14) 38. Qf1 {[%emt 0:00:52]} Qxf1+ {[%emt 0:00:43]} 39. Kxf1 {[%emt 0:00:30]} bxc4 {[%emt 0:00:00]} 40. bxc4 {[%emt 0:00:19]} Nxc4 {[%emt 0:00:23] KB-KN} 41. Bb4 {[%emt 0:00:00]} g4 {[%emt 0:00:16]} 42. Kg2 {[%emt 0:00:47]} Kf7 {[%emt 0:00:37]} 43. h4 {[%emt 0:00:56]} gxh3+ {[%emt 0:00:30]} 44. Kxh3 {[%emt 0:00:30]} Ke6 {[%emt 0:00:00]} 45. Kg2 {[%emt 0:00:43]} Kd5 {[%emt 0:00:13]} 46. Be7 {[%emt 0:00:30]} Ke6 {[%emt 0:00:00]} 47. Bb4 {[%emt 0:00:13]} Nd6 {[%emt 0:01:43]} 48. Kf3 {[%emt 0:01:20]} Ne4 {[%emt 0:00:10]} 49. Ke3 {[%emt 0:00:15]} Ng5 {[%emt 0:01:01]} 50. Ba3 {[%emt 0:00:30]} Ne4 {[%emt 0:00:30]} 51. Bb4 {[%emt 0:00:30]} Ng5 {[%emt 0:00:30]} 52. Ba3 {[%emt 0:00:30]} Ne4 {[%emt 0:00:30]} 53. Bb4 {[%emt 0:00:30]} Nc5 $2 {[%emt 0:00:30][%mdl 40960] Quite a comeback for White.   Weighted Error Value: White=0.16 (very precise) /Black=0.13 (very precise) . An unexpected result.} 1/2-1/2

[Event "TUR-ch U13-18 Open 2023"]
[Site "Antalya"]
[Date "2023.01.25"]
[Round "6"]
[White "Yaman, Omer Yigit"]
[Black "Bektas, Cagan Erdem"]
[Result "0-1"]
[ECO "B26"]
[WhiteElo "1565"]
[BlackElo "1752"]
[Annotator "NA RC COMBH"]
[PlyCount "84"]
[EventDate "2023.01.17"]
[EventType "swiss"]
[EventCountry "TUR"]
[SourceTitle "playchess.com"]
[Source "ChessBase"]
[SourceQuality "1"]
[TimeControl "5400+30"]

1. e4 {[%emt 0:01:00]} c5 {[%emt 0:01:00]} 2. Nc3 {[%emt 0:00:00]} d6 {[%emt 0:00:30]} 3. g3 {[%emt 0:00:00]} g6 {[%emt 0:00:30]} 4. Bg2 {[%emt 0:00:30]} Bg7 {[%emt 0:00:30]} 5. d3 {[%emt 0:00:30]} Nc6 {[%emt 0:00:30]} 6. Be3 {[%emt 0:00:00]} Rb8 {[%emt 0:02:30]} 7. Qd2 {[%emt 0:00:00]} b5 {[%emt 0:02:30]} 8. Nge2 {[%emt 0:00:30]} Nd4 {[%emt 0:07:30]} 9. O-O {[%emt 0:10:30]} b4 {[%emt 0:11:30]} 10. Nd1 {[%emt 0:01:30]} a5 {[%emt 0:13:30]} 11. Nc1 {[%emt 0:06:30]} e6 {[%emt 0:36:18]} 12. c3 {[%emt 0:04:30]} Nc6 {[%emt 0:01:46]} 13. Ne2 {[%emt 0:03:30]} h6 {[%emt 0:03:55]} 14. f4 {[%emt 0:10:30]} Nge7 {[%emt 0:00:32]} 15. Nf2 {[%emt 0:01:30]} Ba6 {[%emt 0:02:30]} 16. g4 {[%emt 0:06:30]} c4 {[%emt 0:02:15]} 17. d4 {[%emt 0:01:30]} d5 {[%emt 0:00:32]} 18. f5 {[%emt 0:03:30]} gxf5 {[%emt 0:01:17]} 19. gxf5 {[%emt 0:01:30]} exf5 {[%emt 0:00:33]} 20. exf5 {[%emt 0:01:30]} Nxf5 {[%emt 0:00:38]} 21. Ng4 {[%emt 0:01:30]} Nce7 {[%emt 0:02:09]} 22. Ng3 {[%emt 0:04:30]} Nxg3 {[%emt 0:02:01]} 23. hxg3 {[%emt 0:00:30]} Rb6 24. Rae1 {[%emt 0:05:30]} Rg6 {[%emt 0:01:07]} 25. Qf2 {[%emt 0:03:30]} O-O {[%emt 0:04:01]} 26. Qf4 {[%emt 0:13:12]} Bc8 {[%emt 0:00:35]} 27. Ne5 {[%emt 0:00:18]} Bxe5 {[%emt 0:00:25]} 28. dxe5 {[%emt 0:00:27]} Be6 {[%emt 0:01:01]} 29. Bc5 {[%emt 0:02:07]} Kh7 {[%emt 0:00:16]} 30. Qh4 {[%emt 0:01:16]} Nf5 {[%emt 0:01:19]} 31. Rxf5 {[%emt 0:00:30]} Bxf5 {[%emt 0:00:06]} 32. Bxf8 {[%emt 0:00:50]} Qxf8 {[%emt 0:00:22]} 33. Rf1 {[%emt 0:01:03]} Be6 {[%emt 0:00:37]} 34. Rf6 {[%emt 0:00:06]} Qg7 {[%emt 0:00:30]} 35. Kh2 {[%emt 0:00:55]} Rg4 {[%emt 0:00:58]} 36. Qh5 {[%emt 0:00:13]} Rxg3 {[%emt 0:00:26]} 37. Qe2 {[%emt 0:01:25]} bxc3 {[%emt 0:00:30]} 38. Qc2+ {[%emt 0:00:22]} Rd3 {[%emt 0:00:50]} 39. bxc3 {[%emt 0:00:30]} Qg3+ {[%emt 0:00:11]} 40. Kg1 {[%emt 0:00:30]} Kg7 {[%emt 0:00:09]} 41. Rf2 {[%emt 0:04:38]} Rxc3 {[%emt 0:00:05]} 42. Qd2 {[%emt 0:00:36]} Qe3 {[%emt 0:00:11]} 0-1

[Event "TUR-ch U13-18 Open 2023"]
[Site "Antalya"]
[Date "2023.01.25"]
[Round "6"]
[White "Ozen, Mehmet Safa"]
[Black "Hatirli, Ugur Can"]
[Result "0-1"]
[ECO "D58"]
[WhiteElo "1536"]
[BlackElo "1989"]
[Annotator "TA"]
[PlyCount "90"]
[EventDate "2023.01.17"]
[EventType "swiss"]
[EventCountry "TUR"]
[SourceTitle "playchess.com"]
[Source "ChessBase"]
[SourceQuality "1"]
[TimeControl "5400+30"]

{[%evp 20,89,10,11,30,50,47,0,0,0,0,0,0,-4,0,-3,-3,-11,0,0,0,0,0,-11,-16,-10,0,0,0,0,0,-4,0,-89,-91,-89,-76,-93,-68,-61,0,0,0,0,14,13,18,10,154,147,237,181,174,0,0,0,302,275,301,135,217,199,157,48,198,0,0,-87,0,-580,-545,-29999]} 1. Nf3 {[%emt 0:01:00]} Nf6 {[%emt 0:01:00]} 2. d4 {[%emt 0:00:30]} e6 {[%emt 0:00:30]} 3. c4 {[%emt 0:00:30]} d5 {[%emt 0:00:30]} 4. Nc3 {[%emt 0:00:00]} Be7 {[%emt 0:00:30]} 5. Bg5 {[%emt 0:00:00]} Nbd7 {[%emt 0:00:30]} 6. e3 {[%emt 0:00:00]} h6 {[%emt 0:00:30]} 7. Bh4 {[%emt 0:02:00]} O-O {[%emt 0:00:30]} 8. Bd3 {[%emt 0:00:00]} dxc4 {[%emt 0:00:30]} 9. Bxc4 {[%emt 0:00:00]} b6 {[%emt 0:00:30]} 10. O-O {[%emt 0:01:30]} Bb7 {[%emt 0:00:30]} 11. Qe2 {[%emt 0:02:30]} c5 {[%emt 0:07:30] D58: Queen's Gambit Declined: Tartakower Defence.} 12. Rfd1 {[%emt 0:05:30]} Ne4 {[%emt 0:12:30]} 13. Bxe7 {[%emt 0:23:30]} (13. Nxe4 $14 Bxe4 14. Bg3) 13... Qxe7 $11 {[%emt 0:00:00] The position is equal.} 14. Nxe4 {[%emt 0:14:30]} Bxe4 {[%emt 0:00:00]} 15. Rac1 {[%emt 0:00:30]} cxd4 {[%emt 0:00:30]} 16. Rxd4 {[%emt 0:00:30]} Nf6 {[%emt 0:04:30] [#]} 17. Rcd1 $146 {[%emt 0:15:30]} ({Predecessor:} 17. Ba6 Rad8 18. Rcd1 Rxd4 19. Rxd4 Rd8 20. Qd1 Rxd4 21. Qxd4 Qc7 22. h3 Bd5 23. a3 Qc1+ 24. Bf1 Ne4 25. Ne5 Nd2 26. Qd3 Qxb2 27. f3 Nxf1 {0-1 Galvan,J (2171)-Roa Alonso,S (2358) Collado Villalba op 17th 2000 (5)}) 17... Rac8 {[%emt 0:03:30]} 18. Bb3 {[%emt 0:00:30]} Qb7 {[%emt 0:04:30]} 19. Ne1 {[%emt 0:05:30]} a5 {[%emt 0:06:30]} 20. f3 {[%emt 0:08:52]} Bc6 {[%emt 0:00:30]} 21. Qd2 {[%emt 0:01:57]} e5 {[%emt 0:06:30]} 22. Rd6 {[%emt 0:00:49]} e4 {[%emt 0:00:30][%cal Re4f3]} 23. f4 {[%emt 0:05:22]} a4 {[%emt 0:00:30]} 24. Bc2 {[%emt 0:03:03]} b5 {[%emt 0:01:30]} 25. a3 {[%emt 0:02:39]} Rfe8 {[%emt 0:02:30]} 26. Bb1 {[%emt 0:00:16] [#]} (26. h3 $11 {keeps the balance.}) 26... Bd5 $1 $17 {[%emt 0:01:30]} 27. Nc2 {[%emt 0:03:00][%cal Od6f6]} (27. Rxd5 $2 {too greedy.} Nxd5 28. Qxd5 Qxd5 29. Rxd5 Rc1 30. Bxe4 Rxe4 $19) 27... Bb3 {[%emt 0:00:30]} 28. Re1 {[%emt 0:01:17] White is weak on the light squares} Qc7 {[%emt 0:01:30][%cal Rb3c2]} 29. Nb4 {[%emt 0:00:51]} Qc4 {[%emt 0:01:30]} ({Black should try} 29... Rcd8 $15 30. Rxd8 Rxd8) 30. Rd4 {[%emt 0:01:05]} Qe6 {[%emt 0:06:30]} 31. Bc2 {[%emt 0:00:24]} Bc4 {[%emt 0:00:30]} 32. h3 {[%emt 0:00:58]} Qf5 {[%emt 0:02:30]} 33. Rc1 {[%emt 0:00:32][%cal Oc2a4] White wants to play Bxa4!} h5 {[%emt 0:02:30]} (33... Be6 $11) 34. Bxa4 $1 $16 {[%emt 0:00:41][%mdl 64] Deflection} g5 {[%emt 0:03:30]} (34... Be6 $16) 35. fxg5 {[%emt 0:00:46][%mdl 64] Deflection} Qxg5 {[%emt 0:00:00]} 36. Qf2 $2 {[%emt 0:00:25]} (36. Rdxc4 $18 Rxc4 37. Rxc4 {[%mdl 64] Pin}) 36... Be6 $11 {[%emt 0:02:00]} 37. Rxc8 {[%emt 0:00:38]} Bxc8 $4 {[%emt 0:01:30][%mdl 8192] [#]} (37... Rxc8 $11 38. Bc2 Bxh3) 38. Bxb5 $1 $18 {[%emt 0:00:19][%mdl 576] Deflection} Re5 {[%emt 0:02:30][%cal Oc8h3]} 39. Bf1 {[%emt 0:00:40]} (39. h4 $18 {and White stays clearly on top.} Qf5 40. a4) 39... Rf5 {[%emt 0:02:30]} (39... Bxh3 $16 {was necessary.} 40. Qf4 Be6) 40. Qd2 {[%emt 0:00:12] Threatens to win with Rd8+.} Be6 {[%emt 0:00:00]} 41. Rd8+ {[%emt 0:00:39]} (41. Nc2 $16) 41... Kg7 {[%emt 0:00:00]} (41... Kh7 $14) 42. Rd6 $2 {[%emt 0:01:04]} (42. Nc2 $18) 42... Rf3 $11 {[%emt 0:01:30]} 43. Rc6 {[%emt 0:00:38] [#]} (43. Nc2 $11 {remains equal.} Rxh3 44. Qe1) 43... Rxh3 {[%emt 0:00:30] Black has more active pieces.} (43... h4 $1 $17 44. Ra6 Bxh3) 44. Rc5 $2 {[%emt 0:00:32][%mdl 8192]} Qg3 $19 {[%emt 0:03:30]} ({Not} 44... Qxc5 45. gxh3 Kf8 46. Nc2 $16) ({Stronger than} 44... Qxe3+ 45. Qxe3 Rxe3 46. Nc2 $11) 45. Qf2 {[%emt 0:00:30] Hoping for Qxg3+.} Qh2# {[%emt 0:00:30] Weighted Error Value: White=0.59/Black=0.35} 0-1